bitfinex-derivatives/quotes_SOLF0:USTF0_20241212
["timestamp","ask_amount","ask_price","bid_price","bid_amount"]
[1734032387725,2.1955,227.71,227.59,34.31538375]
[1734032388132,8.16381035,227.75,227.59,34.31538375]
[1734032388828,2.1952,227.73,227.67,36.51108375]
[1734032389026,2.1952,227.73,227.68,4.84]
[1734032389633,2.1954,227.71,227.66,4.84]
[1734032389834,21.1854373,227.79,227.59,21.1854373]
[1734032390026,8.18580967,227.78,227.59,21.1854373]
[1734032390227,8.18580967,227.78,227.61,2.1963]
[1734032390228,2.1958,227.67,227.61,2.1963]
[1734032390427,8.18580967,227.78,227.59,21.1854373]
[1734032391031,8.18580967,227.78,227.57,1.4197]
[1734032391233,34.46221475,227.72,227.57,1.4197]
[1734032391433,8.18580967,227.71,227.53,37.26991475]
[1734032391635,34.46221475,227.68,227.48,39.30221475]
[1734032391934,34.46221475,227.64,227.44,34.46221475]
[1734032392237,8.18336464,227.63,227.44,34.46221475]
[1734032392437,2.1967,227.58,227.44,34.46221475]
[1734032392732,8.18336464,227.63,227.44,34.46221475]
[1734032392733,29.73028381,227.63,227.44,34.46221475]
[1734032392931,8.18336464,227.62,227.44,34.46221475]
[1734032393131,34.46221475,227.59,227.43,1.4197]
[1734032393333,8.90046464,227.58,227.39,2.6956]
[1734032393540,10.24676464,227.58,227.39,2.6956]
[1734032393737,2.1977,227.48,227.4,2.1984]
[1734032394840,2.1977,227.48,227.41,2.1983]
[1734032395137,2.0634,227.58,227.41,34.46221475]
[1734032395637,2.1976,227.48,227.41,34.46221475]
[1734032395836,10.24523562,227.58,227.39,2.6956]
[1734032395837,34.46221475,227.54,227.39,2.6956]
[1734032396032,34.46221475,227.54,227.33,34.46221475]
[1734032396338,2.1985,227.39,227.3,2.784]
[1734032396537,4.84,227.49,227.32,2.1991]
[1734032396836,1.3535,227.57,227.3,2.784]
[1734032396837,1.0,227.53,227.33,34.46221475]
[1734032397033,5.84,227.53,227.4,2.1983]
[1734032397236,1.0,227.53,227.37,34.46221475]
[1734032397540,4.84,227.56,227.42,2.1982]
[1734032397737,4.84,227.56,227.36,4.84]
[1734032397738,4.84,227.56,227.41,34.46221475]
[1734032398241,2.1976,227.48,227.41,36.66051475]
[1734032398832,4.84,227.56,227.44,2.198]
[1734032398833,2.1973,227.52,227.44,2.198]
[1734032399141,4.84,227.56,227.44,2.198]
[1734032399345,2.1972,227.53,227.46,2.1978]
[1734032399638,1.3535,227.57,227.41,34.46221475]
[1734032400030,1.3535,227.57,227.43,2.1981]
[1734032400235,5.3750782,227.54,227.41,34.46221475]
[1734032401145,2.1972,227.52,227.42,1.4173]
[1734032401338,5.3750782,227.54,227.42,1.4173]
[1734032401734,0.7195,227.63,227.49,34.46221475]
[1734032401939,0.65323509,227.62,227.5,4.84]
[1734032402135,0.65323509,227.62,227.55,2.1969]
[1734032402136,2.1963,227.62,227.55,2.1969]
[1734032402644,0.7195,227.72,227.53,34.46221475]
[1734032402835,5.22208133,227.67,227.54,1.4239]
[1734032403234,5.22208133,227.67,227.5,4.84]
[1734032403442,5.22208133,227.67,227.51,4.84]
[1734032404742,2.1962,227.63,227.52,2.1972]
[1734032404939,2.1962,227.63,227.51,4.84]
[1734032404940,5.22208133,227.67,227.53,34.46221475]
[1734032405440,5.22208133,227.67,227.53,36.65931475]
[1734032406141,5.22208133,227.67,227.51,4.84]
[1734032406443,34.46221475,227.64,227.49,4.62]
[1734032406839,34.46221475,227.6,227.43,7.98255075]
[1734032407036,2.1977,227.47,227.43,2.7008]
[1734032407341,34.46221475,227.52,227.38,1.3195]
[1734032407535,34.46221475,227.48,227.33,5.2891356]
[1734032407734,34.46221475,227.48,227.31,39.08221475]
[1734032407735,34.46221475,227.48,227.31,34.46221475]
[1734032407944,34.46221475,227.48,227.31,39.08221475]
[1734032408742,2.1986,227.38,227.31,41.28151475]
[1734032408941,34.46221475,227.48,227.31,34.46221475]
[1734032409135,39.08221475,227.48,227.3,1.4076]
[1734032409445,34.46221475,227.44,227.29,1.3559]
[1734032409842,2.1989,227.35,227.29,1.3559]
[1734032410042,34.46221475,227.44,227.29,1.3559]
[1734032410342,2.3451,227.47,227.29,1.3559]
[1734032410535,34.46221475,227.41,227.24,4.62]
[1734032410941,2.1991,227.33,227.24,4.62]
[1734032411145,34.46221475,227.41,227.24,4.62]
[1734032411441,2.1995,227.29,227.24,4.62]
[1734032411641,34.46221475,227.36,227.21,1.3743]
[1734032411845,34.46221475,227.36,227.19,34.46221475]
[1734032412045,5.16709238,227.38,227.14,34.46221475]
[1734032412046,34.46221475,227.32,227.14,34.46221475]
[1734032412244,39.08221475,227.32,227.14,34.46221475]
[1734032412540,2.1999,227.25,227.14,34.46221475]
[1734032412745,39.08221475,227.32,227.14,34.46221475]
[1734032413043,4.62,227.32,227.14,34.46221475]
[1734032413247,4.62,227.32,227.17,21.27444231]
[1734032413646,5.16709238,227.38,227.21,21.27444231]
[1734032414144,5.16709238,227.38,227.22,1.3958]
[1734032414846,5.16709238,227.38,227.25,21.27444231]
[1734032415048,5.16709238,227.38,227.26,1.4339]
[1734032415242,2.1987,227.37,227.28,2.1995]
[1734032415738,97.22474035,227.39,227.26,1.4339]
[1734032415936,97.22474035,227.39,227.3,2.1993]
[1734032416138,97.22474035,227.39,227.28,4.62]
[1734032416344,5.21908009,227.41,227.26,1.4339]
[1734032417146,2.07,227.45,227.3,34.53198437]
[1734032417147,1.3482,227.45,227.3,34.53198437]
[1734032417346,5.16996803,227.42,227.3,34.53198437]
[1734032417945,2.1985,227.39,227.3,36.73128437]
[1734032418145,5.16996803,227.42,227.26,35.96588437]
[1734032418449,34.53198437,227.41,227.26,1.4339]
[1734032418639,5.16996803,227.42,227.26,1.4339]
[1734032418838,5.16996803,227.42,227.26,35.96588437]
[1734032419047,5.16996803,227.42,227.3,36.73128437]
[1734032419243,5.16996803,227.42,227.3,34.53198437]
[1734032420550,2.1987,227.37,227.3,34.53198437]
[1734032420847,2.1987,227.37,227.29,1.4274]
[1734032420848,5.16996803,227.42,227.29,1.4274]
[1734032421044,34.53198437,227.4,227.26,1.4339]
[1734032421446,5.16996803,227.42,227.26,35.96588437]
[1734032421646,34.53198437,227.48,227.3,34.53198437]
[1734032421848,34.53198437,227.48,227.31,4.62]
[1734032422149,2.1979,227.45,227.37,2.1986]
[1734032422340,5.16113804,227.47,227.35,2.8791]
[1734032422645,2.1982,227.42,227.35,2.8791]
[1734032422949,5.16113804,227.47,227.35,2.8791]
[1734032423147,2.1981,227.44,227.35,2.8791]
[1734032423346,5.16113804,227.47,227.35,2.8791]
[1734032423749,34.53198437,227.44,227.26,35.96588437]
[1734032424051,34.53198437,227.4,227.27,1.4194]
[1734032424852,2.1992,227.32,227.27,1.4194]
[1734032425146,34.53198437,227.36,227.24,1.4517]
[1734032425349,4.4,227.39,227.24,3.6516]
[1734032425549,34.53198437,227.4,227.24,1.4517]
[1734032426155,10.90933804,227.47,227.3,34.53198437]
[1734032426446,10.90933804,227.47,227.31,2.8436]
[1734032426846,5.16113804,227.47,227.34,34.53198437]
[1734032427051,1.3497,227.54,227.35,4.4]
[1734032427347,34.53198437,227.59,227.42,34.53198437]
[1734032427547,4.4,227.63,227.46,34.53198437]
[1734032427945,34.53198437,227.6,227.21,13.15]
[1734032428152,34.53198437,227.55,227.36,34.53198437]
[1734032428355,34.53198437,227.55,227.37,1.4159]
[1734032428549,5.24109778,227.56,227.4,34.53198437]
[1734032428745,5.24109778,227.56,227.41,2.7857]
[1734032428950,5.24109778,227.56,227.45,2.1978]
[1734032428951,2.1972,227.52,227.45,2.1978]
[1734032429151,5.24109778,227.56,227.45,4.4]
[1734032429548,34.53198437,227.63,227.45,4.4]
[1734032429954,2.1965,227.6,227.5,2.1973]
[1734032430252,34.53198437,227.67,227.49,1.4094]
[1734032430559,50.14,227.71,227.52,34.53198437]
[1734032430560,5.30336616,227.66,227.52,34.53198437]
[1734032430857,5.30336616,227.66,227.53,4.4]
[1734032431253,5.30336616,227.66,227.54,1.4131]
[1734032431449,5.30336616,227.66,227.54,2.7475]
[1734032431758,2.1963,227.62,227.54,4.9445]
[1734032431958,1.3497,227.74,227.56,34.53198437]
[1734032432156,39.65208437,227.75,227.56,34.53198437]
[1734032432157,5.26651799,227.7,227.56,34.53198437]
[1734032432455,34.53198437,227.79,227.6,34.53198437]
[1734032432652,5.1905662,227.75,227.61,5.7246]
[1734032433157,2.1955,227.7,227.62,2.1962]
[1734032433355,5.1905662,227.75,227.62,2.1962]
[1734032433553,5.1905662,227.75,227.61,5.7246]
[1734032433554,2.1962,227.63,227.61,1.3246]
[1734032433760,34.53198437,227.71,227.54,7.1475]
[1734032434054,34.53198437,227.66,227.54,2.7475]
[1734032434860,1.3478,227.69,227.54,2.7475]
[1734032436560,9.49542181,227.69,227.54,2.7475]
[1734032437050,34.53198437,227.62,227.46,4.4]
[1734032437251,34.53198437,227.62,227.41,38.56968437]
[1734032437449,34.53198437,227.58,227.42,9.80488029]
[1734032437762,34.53198437,227.58,227.42,5.40488029]
[1734032437955,34.53198437,227.58,227.41,4.0377]
[1734032438151,34.53198437,227.58,227.41,8.4377]
[1734032438352,8.14336493,227.57,227.41,4.0377]
[1734032438556,2.1978,227.47,227.41,4.0377]
[1734032438964,5.17242429,227.54,227.41,38.56968437]
[1734032439153,2.1975,227.5,227.42,2.1981]
[1734032439357,34.53198437,227.58,227.41,38.56968437]
[1734032439659,8.14373068,227.57,227.41,38.56968437]
[1734032439955,34.53198437,227.62,227.41,38.56968437]
[1734032440158,8.79762803,227.61,227.41,38.56968437]
[1734032440358,0.65329213,227.6,227.41,38.56968437]
[1734032440657,34.53198437,227.54,227.31,34.53198437]
[1734032440856,34.53198437,227.5,227.29,2.7695]
[1734032441053,34.53198437,227.46,227.29,1.3819]
[1734032441258,2.1988,227.36,227.29,1.3819]
[1734032441656,8.13782186,227.46,227.29,1.3819]
[1734032442657,8.13782186,227.46,227.32,21.25538619]
[1734032442863,8.72896199,227.53,227.32,21.25538619]
[1734032443056,2.1983,227.42,227.28,28.78416075]
[1734032443264,34.53495036,227.49,227.3,1.4096]
[1734032443664,8.1361377,227.48,227.31,2.1992]
[1734032443869,8.1361377,227.48,227.3,5.8096]
[1734032444059,38.86391235,227.53,227.33,34.53495036]
[1734032444368,8.13921402,227.52,227.37,34.53495036]
[1734032444563,3.00026199,227.53,227.37,34.53495036]
[1734032444762,0.65316256,227.52,227.37,34.53495036]
[1734032444964,3.00026199,227.53,227.36,4.4]
[1734032445161,34.53495036,227.5,227.3,35.94455036]
[1734032445361,2.1981,227.44,227.3,35.94455036]
[1734032445561,34.53495036,227.46,227.3,35.94455036]
[1734032446462,34.53495036,227.46,227.3,38.14385036]
[1734032446463,2.1987,227.37,227.3,38.14385036]
[1734032446665,2.1987,227.37,227.3,35.94455036]
[1734032447957,4.4,227.49,227.3,35.94455036]
[1734032447958,2.1986,227.39,227.3,35.94455036]
[1734032448466,4.4,227.49,227.3,35.94455036]
[1734032448467,2.1984,227.4,227.34,34.53495036]
[1734032448661,4.4,227.49,227.34,34.53495036]
[1734032449265,2.1984,227.4,227.34,36.73385036]
[1734032449465,34.53495036,227.58,227.38,34.53495036]
[1734032449763,8.15147233,227.57,227.38,34.53495036]
[1734032449963,8.15147233,227.57,227.35,4.4]
[1734032449964,8.15147233,227.57,227.42,34.53495036]
[1734032450156,5.19816807,227.54,227.42,34.53495036]
[1734032450360,2.1974,227.51,227.43,1.4482]
[1734032450566,5.19816807,227.54,227.43,1.4482]
[1734032452669,2.1976,227.48,227.43,1.4482]
[1734032452863,5.19816807,227.54,227.37,34.53495036]
[1734032453069,5.19816807,227.54,227.15,84.65645036]
[1734032453070,34.53495036,227.49,227.29,1.3306]
[1734032453265,4.18,227.48,227.29,35.86555036]
[1734032453669,2.1985,227.39,227.29,35.86555036]
[1734032453969,4.18,227.48,227.3,5.33602637]
[1734032454174,2.1986,227.38,227.32,2.1992]
[1734032454362,4.18,227.48,227.29,35.86555036]
[1734032454563,34.53495036,227.45,227.29,1.3306]
[1734032454870,34.53495036,227.45,227.29,41.13663845]
[1734032455065,4.18,227.47,227.29,41.13663845]
[1734032455265,2.1983,227.41,227.35,2.1989]
[1734032455465,4.18,227.47,227.33,34.53495036]
[1734032455670,4.18,227.51,227.33,34.53495036]
[1734032455865,4.18,227.51,227.33,4.18]
[1734032456365,1.3472,227.53,227.36,34.53495036]
[1734032456564,5.19816807,227.54,227.36,34.53495036]
[1734032456762,5.19816807,227.54,227.45,2.1979]
[1734032456763,2.1972,227.52,227.45,2.1979]
[1734032456970,2.1972,227.52,227.41,4.18]
[1734032457161,8.16062478,227.59,227.44,34.53495036]
[1734032457365,5.15622447,227.6,227.48,34.53495036]
[1734032458173,2.1968,227.57,227.51,2.1973]
[1734032458370,34.53495036,227.66,227.48,34.53495036]
[1734032458577,4.18,227.68,227.52,34.53495036]
[1734032459775,4.18,227.68,227.53,1.3139]
[1734032459977,2.1966,227.59,227.53,1.3139]
[1734032460876,5.23325392,227.64,227.53,1.3139]
[1734032461075,5.23325392,227.64,227.47,5.40096334]
[1734032461076,34.53495036,227.62,227.47,5.40096334]
[1734032461282,34.53495036,227.62,227.45,1.3862]
[1734032461488,2.1972,227.53,227.45,1.3862]
[1734032461875,2.1977,227.48,227.45,1.3862]
[1734032462078,34.53495036,227.58,227.45,1.3862]
[1734032462273,34.53495036,227.54,227.37,9.47652045]
[1734032462471,34.53495036,227.5,227.28,4.18]
[1734032462671,34.53495036,227.46,227.28,4.18]
[1734032462874,34.53495036,227.46,227.28,6.3795]
[1734032462875,4.18,227.45,227.28,6.3795]
[1734032463177,4.18,227.45,227.29,5.16306565]
[1734032463477,4.18,227.48,227.36,2.1988]
[1734032463676,1.0,227.53,227.36,38.71495036]
[1734032463877,5.37413941,227.53,227.4,34.53495036]
[1734032464077,1.3474,227.6,227.46,2.1978]
[1734032464676,5.20365748,227.56,227.45,1.4195]
[1734032465081,5.20365748,227.56,227.41,2.7243]
[1734032465283,5.20365748,227.56,227.44,34.53495036]
[1734032465782,5.20365748,227.56,227.41,4.1291]
[1734032465978,34.53495036,227.54,227.32,34.53495036]
[1734032466181,4.18,227.53,227.36,34.53495036]
[1734032466374,4.18,227.53,227.39,2.1985]
[1734032466777,2.1979,227.45,227.37,2.1986]
[1734032466978,4.18,227.53,227.36,34.53495036]
[1734032467285,34.53495036,227.47,227.33,1.4326]
[1734032467583,8.16604422,227.52,227.3,2.7257]
[1734032467584,34.53495036,227.43,227.3,2.7257]
[1734032467782,38.71495036,227.43,227.26,34.53495036]
[1734032468082,38.71495036,227.43,227.24,1.4326]
[1734032468083,34.53495036,227.39,227.24,2.7891]
[1734032468274,8.16203882,227.42,227.24,1.3565]
[1734032468275,34.53495036,227.35,227.24,1.3565]
[1734032468475,38.71495036,227.35,227.19,2.2004]
[1734032468675,38.71495036,227.35,227.18,34.53495036]
[1734032468886,38.71495036,227.35,227.17,2.754]
[1734032469382,2.2004,227.19,227.11,15.18573319]
[1734032469579,4.18,227.27,227.11,15.18573319]
[1734032469780,4.18,227.27,227.11,9.87357751]
[1734032470180,34.53495036,227.26,227.11,9.87357751]
[1734032470380,34.53495036,227.22,227.11,9.87357751]
[1734032470690,1.3501,227.29,227.11,9.87357751]
[1734032470883,34.53495036,227.21,227.11,9.87357751]
[1734032471081,4.18,227.23,227.11,9.87357751]
[1734032471883,5.37506428,227.19,227.11,9.87357751]
[1734032472086,2.201,227.14,227.11,9.87357751]
[1734032472391,39.91001464,227.19,227.11,9.87357751]
[1734032472889,2.201,227.13,227.11,6.43217751]
[1734032473081,4.18,227.12,226.98,1.3504]
[1734032473285,2.2021,227.02,226.94,1.409]
[1734032473479,2.2021,227.02,226.82,34.53495036]
[1734032473480,4.18,227.04,226.88,37.28625036]
[1734032473881,4.18,227.04,226.88,2.7513]
[1734032473882,2.2024,226.99,226.88,2.7513]
[1734032474287,34.53495036,227.06,226.88,2.7513]
[1734032474483,2.202,227.03,226.92,2.203]
[1734032474788,38.71495036,227.1,226.91,38.71495036]
[1734032474982,2.2015,227.08,226.91,38.71495036]
[1734032475185,2.2015,227.08,226.95,34.53495036]
[1734032475487,2.2016,227.07,226.97,2.2025]
[1734032475789,5.19108109,227.08,226.95,34.53495036]
[1734032476286,5.19108109,227.08,226.91,34.53495036]
[1734032476589,34.53495036,227.06,226.88,2.7513]
[1734032476783,5.19108109,227.08,226.91,34.53495036]
[1734032477185,5.19108109,227.08,226.89,4.18]
[1734032477186,4.18,227.09,226.95,34.53495036]
[1734032477487,5.23935963,227.12,226.96,1.3356]
[1734032477684,34.53495036,227.15,226.99,34.53495036]
[1734032477992,2.2009,227.14,227.05,2.2017]
[1734032478191,4.18,227.17,227.0,1.3219]
[1734032478489,102.57464737,227.21,227.07,34.53495036]
[1734032478690,5.26739174,227.21,227.08,5.6309]
[1734032478987,2.2002,227.22,227.13,2.201]
[1734032479293,34.53495036,227.23,227.08,1.4509]
[1734032479490,34.53495036,227.23,227.09,1.4183]
[1734032479691,2.2003,227.21,227.09,1.4183]
[1734032479893,34.53495036,227.27,227.11,34.53495036]
[1734032480095,2.1998,227.26,227.17,2.2006]
[1734032480399,4.0,227.31,227.15,34.53495036]
[1734032480992,4.0,227.31,227.15,38.53495036]
[1734032481391,2.2001,227.23,227.15,4.0]
[1734032481587,4.0,227.31,227.12,5.3219]
[1734032481588,34.53495036,227.28,227.12,5.3219]
[1734032482195,4.0,227.31,227.12,5.3219]
[1734032482196,34.53495036,227.24,227.12,5.3219]
[1734032482395,34.53495036,227.24,227.12,1.3219]
[1734032483001,34.53495036,227.28,227.12,1.3219]
[1734032483292,2.1997,227.27,227.19,2.2004]
[1734032483496,39.81355619,227.32,227.17,4.0]
[1734032483697,4.0,227.31,227.17,4.0]
[1734032484203,4.0,227.31,227.12,1.3219]
[1734032484395,4.0,227.31,227.15,34.53495036]
[1734032484792,4.0,227.31,227.15,38.53495036]
[1734032484999,4.0,227.31,227.15,34.53495036]
[1734032485199,4.0,227.31,227.12,1.3219]
[1734032485200,34.53495036,227.29,227.12,1.3219]
[1734032485697,34.53495036,227.25,227.09,1.4183]
[1734032485897,34.53495036,227.21,227.09,1.4183]
[1734032486194,34.53495036,227.17,227.01,5.1930688]
[1734032486401,2.2014,227.09,227.01,5.1930688]
[1734032486897,4.0,227.16,227.01,5.1930688]
[1734032487098,4.0,227.16,226.98,1.4024]
[1734032487599,2.2018,227.05,226.98,1.4024]
[1734032488199,2.2012,227.11,227.01,2.2021]
[1734032488407,5.20170858,227.14,227.0,34.53495036]
[1734032488698,5.20170858,227.14,226.98,1.4024]
[1734032489997,2.2014,227.1,226.99,2.2023]
[1734032490196,5.20170858,227.14,226.99,2.2023]
[1734032490495,5.20170858,227.14,226.98,1.4024]
[1734032490695,2.2015,227.09,227.01,2.2022]
[1734032490894,4.0,227.16,226.99,34.53495036]
[1734032491297,2.201,227.14,227.03,34.53495036]
[1734032491497,34.53495036,227.21,227.03,34.53495036]
[1734032491698,4.0,227.21,226.98,1.4024]
[1734032491998,39.75795741,227.18,226.98,35.93735036]
[1734032492400,2.2015,227.08,226.98,35.93735036]
[1734032492596,4.0,227.13,226.98,35.93735036]
[1734032492994,4.0,227.13,226.99,2.2023]
[1734032493196,4.0,227.13,226.98,35.93735036]
[1734032493499,43.75795741,227.18,227.02,34.53495036]
[1734032493705,9.22300705,227.18,227.02,34.53495036]
[1734032494004,4.0,227.17,227.06,2.2017]
[1734032494198,4.0,227.17,227.02,34.53495036]
[1734032494399,4.0,227.22,227.06,34.53495036]
[1734032494701,9.1859982,227.22,227.07,2.7877]
[1734032494902,43.72094856,227.22,227.07,2.7877]
[1734032495199,2.2014,227.09,227.07,2.7877]
[1734032495704,2.2011,227.12,227.07,2.7877]
[1734032495906,9.1859982,227.22,227.07,2.7877]
[1734032495907,43.72094856,227.22,227.07,2.7877]
[1734032496599,34.53495036,227.18,227.07,2.7877]
[1734032496898,34.53495036,227.18,227.07,1.4395]
[1734032497300,43.72094856,227.22,227.07,1.4395]
[1734032497506,2.201,227.14,227.07,1.4395]
[1734032497706,39.72094856,227.22,227.07,1.4395]
[1734032497909,43.72094856,227.22,227.07,1.4395]
[1734032498098,2.201,227.13,227.07,1.4395]
[1734032498499,43.72094856,227.22,227.07,1.4395]
[1734032498805,38.53495036,227.3,227.1,34.53495036]
[1734032499106,2.2012,227.11,227.07,1.4395]
[1734032499404,34.53495036,227.18,227.07,1.4395]
[1734032499605,4.0,227.17,227.01,1.3555]
[1734032500308,34.53495036,227.14,227.01,1.3555]
[1734032501709,2.2019,227.04,226.9,2.2031]
[1734032501909,34.53495036,227.14,226.85,38.72775036]
[1734032501910,38.53495036,227.06,226.85,38.72775036]
[1734032502100,38.53495036,227.06,226.87,5.34689488]
[1734032502101,4.0,227.05,226.87,5.34689488]
[1734032502705,4.0,227.05,226.89,34.53495036]
[1734032502911,4.0,227.07,226.94,2.2028]
[1734032503207,4.0,227.07,226.89,38.53495036]
[1734032503401,4.0,227.07,226.91,2.2031]
[1734032503607,34.53495036,227.06,226.89,34.53495036]
[1734032504101,34.53495036,227.06,226.85,42.72775036]
[1734032504512,2.2026,226.97,226.89,2.2033]
[1734032504706,34.53495036,227.06,226.85,42.72775036]
[1734032504911,34.53495036,227.06,226.86,5.27268235]
[1734032505112,34.53495036,227.06,226.89,34.53495036]
[1734032505311,4.0,227.07,226.89,34.53495036]
[1734032505611,4.0,227.07,226.91,2.2031]
[1734032505612,2.2025,226.98,226.91,2.2031]
[1734032505804,4.0,227.07,226.91,2.2031]
[1734032506410,4.0,227.07,226.89,36.73815036]
[1734032506610,2.2022,227.01,226.89,34.53495036]
[1734032506812,34.53495036,227.06,226.89,34.53495036]
[1734032507114,2.2028,226.95,226.86,5.27268235]
[1734032507512,34.53495036,227.06,226.9,34.53495036]
[1734032507810,4.0,227.07,226.9,34.53495036]
[1734032509211,4.0,227.07,226.9,36.73805036]
[1734032509419,4.0,227.07,226.9,34.53495036]
[1734032510412,3.86,227.08,226.94,34.53495036]
[1734032511311,3.86,227.08,226.94,23.52371323]
[1734032512119,3.86,227.08,226.94,21.32091323]
[1734032512317,8.15308004,227.07,226.9,21.32091323]
[1734032512517,21.32091323,227.06,226.9,21.32091323]
[1734032513016,8.15181889,227.05,226.9,21.32091323]
[1734032514026,2.2028,226.95,226.9,21.32091323]
[1734032514322,8.15181889,227.05,226.9,21.32091323]
[1734032514524,1.0,227.07,226.9,21.32091323]
[1734032514525,9.15181889,227.07,226.9,21.32091323]
[1734032514827,2.2024,226.99,226.9,21.32091323]
[1734032515023,3.86,227.06,226.9,21.32091323]
[1734032515221,3.86,227.06,226.86,5.27268235]
[1734032515222,2.2023,227.0,226.94,21.32091323]
[1734032515420,3.86,227.06,226.94,21.32091323]
[1734032515925,2.2024,226.99,226.94,21.32091323]
[1734032516127,3.86,227.06,226.94,21.32091323]
[1734032516328,149.0905557,227.15,226.98,21.32091323]
[1734032516523,3.86,227.12,226.89,3.86]
[1734032516825,8.16350968,227.08,226.93,21.32091323]
[1734032517223,9.16350968,227.08,226.93,21.32091323]
[1734032517527,2.2027,226.96,226.93,21.32091323]
[1734032518223,2.2023,227.0,226.93,21.32091323]
[1734032518423,3.86,227.03,226.93,21.32091323]
[1734032518632,1.0,227.08,227.01,21.32091323]
[1734032518930,9.16440804,227.08,227.05,21.32091323]
[1734032519120,1.0,227.08,227.05,21.32091323]
[1734032519325,5.34619899,227.14,227.05,21.32091323]
[1734032520629,97.30566085,227.21,227.1,21.32091323]
[1734032520832,8.16847223,227.2,227.1,21.32091323]
[1734032521229,2.2007,227.16,227.1,23.52221323]
[1734032521435,2.2007,227.16,227.1,21.32091323]
[1734032521732,2.2004,227.19,227.12,2.2011]
[1734032522032,2.2004,227.19,227.1,21.32091323]
[1734032522033,97.30566085,227.21,227.1,21.32091323]
[1734032522235,102.6008811,227.21,227.09,21.32091323]
[1734032522932,102.6008811,227.21,227.13,21.32091323]
[1734032523427,102.6008811,227.21,227.09,21.32091323]
[1734032523732,102.6008811,227.21,227.04,21.32091323]
[1734032523931,102.6008811,227.21,227.01,4.1597]
[1734032523932,2.2019,227.04,227.01,4.1597]
[1734032524228,3.84,227.12,227.01,1.3605]
[1734032524430,2.2021,227.02,227.01,1.3605]
[1734032524632,3.84,227.12,226.95,1.432]
[1734032525028,2.2025,226.98,226.95,1.432]
[1734032525334,29.48321295,227.11,226.95,1.432]
[1734032525531,12.00229972,227.1,226.95,1.432]
[1734032525829,8.16229972,227.09,226.92,26.51863944]
[1734032526234,2.2023,227.0,226.93,2.2029]
[1734032526538,21.32091323,227.11,226.96,21.32091323]
[1734032526844,3.84,227.11,227.0,21.32091323]
[1734032527134,3.84,227.14,227.01,1.4039]
[1734032527332,3.84,227.14,227.01,4.1887]
[1734032528037,170.41146893,227.19,227.04,21.32091323]
[1734032528038,3.84,227.19,227.04,21.32091323]
[1734032528243,2.2015,227.08,227.04,21.32091323]
[1734032528447,2.2015,227.08,227.02,2.202]
[1734032528948,8.176129,227.18,227.04,21.32091323]
[1734032529241,2.2012,227.12,227.04,23.52271323]
[1734032529439,8.18676581,227.18,227.01,4.1887]
[1734032530045,21.32091323,227.15,227.01,4.1887]
[1734032530341,2.2018,227.05,227.01,4.1887]
[1734032530738,8.1907164,227.14,227.01,4.1887]
[1734032530949,2.2021,227.02,226.97,21.32091323]
[1734032531146,3.84,227.1,226.97,21.32091323]
[1734032531643,3.84,227.1,226.94,1.3226]
[1734032531847,21.32091323,227.07,226.94,1.3226]
[1734032532049,2.2024,226.99,226.94,1.3226]
[1734032532247,21.32091323,227.07,226.94,1.3226]
[1734032532446,8.18760439,227.06,226.94,1.3226]
[1734032532649,21.32091323,227.07,226.94,1.3226]
[1734032532850,8.187413,227.06,226.94,1.3226]
[1734032534656,21.32091323,227.04,226.86,2.2036]
[1734032534851,8.187413,227.03,226.87,5.25985663]
[1734032535053,21.32091323,227.04,226.87,7.97265663]
[1734032535248,25.16091323,227.04,226.89,21.32091323]
[1734032535450,3.84,227.07,226.89,25.16091323]
[1734032535655,178.9086669,227.14,226.89,25.16091323]
[1734032535656,3.84,227.13,226.93,21.32091323]
[1734032535852,21.32091323,227.14,226.97,21.32091323]
[1734032536046,21.32091323,227.14,226.89,3.84]
[1734032536047,21.32091323,227.18,227.01,21.32091323]
[1734032536349,97.30566085,227.21,227.05,21.32091323]
[1734032536557,2.2007,227.16,227.05,25.16091323]
[1734032536955,21.32091323,227.26,227.09,21.32091323]
[1734032537158,170.41146893,227.3,227.13,21.32091323]
[1734032537357,149.0905557,227.33,227.17,2.2006]